[Event "*** Titled Tuesday Blitz"]
[Site "Chess.com"]
[Date "2018.11.06"]
[Round "6"]
[White "Ar4uha"]
[Black "FairChess_on_YouTube"]
[Result "1-0"]
[WhiteElo "2621"]
[BlackElo "2904"]
[TimeControl "180+2"]
[EndTime "14:23:26 PST"]
[Termination "Ar4uha won by resignation"]

1. e4 {[%clk 0:03:01.9]} 1... c5 {[%clk 0:03:00.6]} 2. Nf3 {[%clk 0:03:02]} 2...
e6 {[%clk 0:03:02.2]} 3. c3 {[%clk 0:02:59.9]} 3... Nf6 {[%clk 0:03:01.2]} 4. e5
{[%clk 0:03:00.3]} 4... Nd5 {[%clk 0:03:02]} 5. g3 {[%clk 0:03:02.2]} 5... d6
{[%clk 0:02:50.5]} 6. exd6 {[%clk 0:03:04.1]} 6... Bxd6 {[%clk 0:02:48.8]} 7.
Bg2 {[%clk 0:03:05.2]} 7... e5 {[%clk 0:02:43.7]} 8. O-O {[%clk 0:03:04.4]} 8...
O-O {[%clk 0:02:44.1]} 9. d3 {[%clk 0:03:02.7]} 9... Nc6 {[%clk 0:02:43.5]} 10.
Nbd2 {[%clk 0:03:03.9]} 10... Bc7 {[%clk 0:02:38.5]} 11. Re1 {[%clk 0:03:03.6]}
11... h6 {[%clk 0:02:28.4]} 12. a3 {[%clk 0:03:03.2]} 12... b6 {[%clk
0:02:26.7]} 13. Nc4 {[%clk 0:03:02.8]} 13... Re8 {[%clk 0:02:24.2]} 14. Qc2
{[%clk 0:02:59.6]} 14... Bf5 {[%clk 0:02:22.6]} 15. Nh4 {[%clk 0:02:56.9]} 15...
Be6 {[%clk 0:02:14.4]} 16. b4 {[%clk 0:02:57.6]} 16... b5 {[%clk 0:01:59.7]} 17.
Ne3 {[%clk 0:02:56.6]} 17... cxb4 {[%clk 0:01:54.5]} 18. axb4 {[%clk 0:02:55.2]}
18... Bb6 {[%clk 0:01:53.3]} 19. Nxd5 {[%clk 0:02:41.3]} 19... Bxd5 {[%clk
0:01:55.2]} 20. Be4 {[%clk 0:02:36.9]} 20... Rc8 {[%clk 0:01:54.1]} 21. Qe2
{[%clk 0:02:29.4]} 21... Ne7 {[%clk 0:01:52.3]} 22. Bd2 {[%clk 0:02:26.9]} 22...
Bxe4 {[%clk 0:01:52.3]} 23. dxe4 {[%clk 0:02:28.8]} 23... Rc4 {[%clk 0:01:52.5]}
24. Red1 {[%clk 0:02:26.4]} 24... Qa8 {[%clk 0:01:50.8]} 25. Be3 {[%clk
0:02:17.2]} 25... Qxe4 {[%clk 0:01:47.4]} 26. Qf3 {[%clk 0:02:13]} 26... Qxf3
{[%clk 0:01:29.7]} 27. Nxf3 {[%clk 0:02:14.9]} 27... Bxe3 {[%clk 0:01:29.6]} 28.
fxe3 {[%clk 0:02:16.6]} 28... Rxc3 {[%clk 0:01:20.8]} 29. Rxa7 {[%clk 0:02:16]}
29... Rxe3 {[%clk 0:01:12.1]} 30. Kf2 {[%clk 0:02:16.8]} 30... Re4 {[%clk
0:01:13.2]} 31. Rdd7 {[%clk 0:02:18.3]} 31... Kf8 {[%clk 0:01:13.2]} 32. Rab7
{[%clk 0:02:16.6]} 32... f6 {[%clk 0:01:05]} 33. Nh4 {[%clk 0:02:16.1]} 33...
Rxh4 {[%clk 0:00:34.2]} 34. gxh4 {[%clk 0:02:15.6]} 34... Nf5 {[%clk 0:00:35.3]}
35. Rxb5 {[%clk 0:02:10.5]} 35... Nxh4 {[%clk 0:00:31.2]} 36. Rc5 {[%clk
0:02:00.7]} 36... e4 {[%clk 0:00:30.7]} 37. b5 {[%clk 0:01:57.5]} 37... e3+
{[%clk 0:00:27.1]} 38. Ke2 {[%clk 0:01:59.1]} 38... Ng2 {[%clk 0:00:23.3]} 39.
Rc1 {[%clk 0:01:28.3]} 39... Nf4+ {[%clk 0:00:21]} 40. Kf3 {[%clk 0:01:29.9]}
40... g5 {[%clk 0:00:21.1]} 41. b6 {[%clk 0:01:31.1]} 41... e2 {[%clk
0:00:21.7]} 42. b7 {[%clk 0:01:31.6]} 42... Ne6 {[%clk 0:00:18.9]} 43. Rh7
{[%clk 0:01:21.9]} 43... Kg8 {[%clk 0:00:18.4]} 44. Re7 {[%clk 0:01:21.7]} 44...
Nd4+ {[%clk 0:00:11.6]} 45. Kf2 {[%clk 0:01:22.9]} 45... Rxe7 {[%clk 0:00:13]}
46. b8=Q+ {[%clk 0:01:24.3]} 46... Kf7 {[%clk 0:00:14.5]} 47. Qd6 {[%clk
0:01:20.4]} 47... Nf5 {[%clk 0:00:14.1]} 48. Qd5+ {[%clk 0:01:21.2]} 48... Kg6
{[%clk 0:00:15.6]} 49. Re1 {[%clk 0:01:22.3]} 49... Re5 {[%clk 0:00:09.1]} 50.
Qg8+ {[%clk 0:01:23.4]} 50... Kh5 {[%clk 0:00:10.1]} 51. Rxe2 {[%clk 0:01:24]}
51... Rxe2+ {[%clk 0:00:11.6]} 52. Kxe2 {[%clk 0:01:25]} 52... Kh4 {[%clk
0:00:08.1]} 53. Qg6 {[%clk 0:01:20.8]} 53... Kg4 {[%clk 0:00:09.1]} 54. Kf2
{[%clk 0:01:16.8]} 54... Kf4 {[%clk 0:00:10]} 55. h3 {[%clk 0:01:13.4]} 55...
Ke5 {[%clk 0:00:06.5]} 56. Qe8+ {[%clk 0:01:14.7]} 56... Kf4 {[%clk 0:00:05.9]}
57. Qe6 {[%clk 0:01:15.8]} 57... h5 {[%clk 0:00:04]} 58. Qxf6 {[%clk 0:01:16.7]}
58... g4 {[%clk 0:00:05.5]} 59. hxg4 {[%clk 0:01:16.3]} 59... hxg4 {[%clk
0:00:07.4]} 60. Kg2 {[%clk 0:01:05.3]} 60... g3 {[%clk 0:00:07.7]} 61. Kh3
{[%clk 0:01:05.5]} 61... Ke4 {[%clk 0:00:06.4]} 62. Kg4 {[%clk 0:00:59.5]} 62...
Nd4 {[%clk 0:00:04.3]} 63. Qf4+ {[%clk 0:00:52.7]} 63... Kd3 {[%clk 0:00:05.1]}
64. Qxg3+ {[%clk 0:00:54.6]} 64... Ke4 {[%clk 0:00:06.1]} 65. Qf4+ {[%clk
0:00:55.9]} 65... Kd5 {[%clk 0:00:07.4]} 66. Qe3 {[%clk 0:00:55.9]} 66... Nc6
{[%clk 0:00:07.3]} 67. Kf5 {[%clk 0:00:54.4]} 67... Nd4+ {[%clk 0:00:08.3]} 68.
Kf6 {[%clk 0:00:56]} 68... Nc6 {[%clk 0:00:09.3]} 69. Qe6+ {[%clk 0:00:50.7]}
69... Kc5 {[%clk 0:00:10.1]} 70. Qd7 {[%clk 0:00:51.1]} 70... Nd4 {[%clk
0:00:10.2]} 71. Ke5 {[%clk 0:00:52]} 71... Nb5 {[%clk 0:00:11.4]} 72. Qc8+
{[%clk 0:00:52.6]} 72... Kb6 {[%clk 0:00:11.4]} 73. Kd5 {[%clk 0:00:53.7]} 73...
Nc7+ {[%clk 0:00:12.5]} 74. Kc4 {[%clk 0:00:54.7]} 74... Kc6 {[%clk 0:00:13.4]}
75. Qd8 {[%clk 0:00:55.5]} 75... Kb6 {[%clk 0:00:12]} 76. Qd6+ {[%clk
0:00:56.4]} 76... Kb7 {[%clk 0:00:13.5]} 77. Kc5 {[%clk 0:00:56.9]} 77... Na6+
{[%clk 0:00:13.9]} 78. Kb5 {[%clk 0:00:58.4]} 78... Nb8 {[%clk 0:00:13.2]} 79.
Qe7+ {[%clk 0:00:59.5]} 79... Kc8 {[%clk 0:00:14.4]} 80. Kb6 {[%clk 0:00:59.3]}
80... Nd7+ {[%clk 0:00:15.9]} 81. Kc6 {[%clk 0:01:00.8]} 81... Nb8+ {[%clk
0:00:17]} 82. Kd6 {[%clk 0:01:02.3]} 82... Na6 {[%clk 0:00:18.4]} 83. Qa7 {[%clk
0:01:02.5]} 1-0

[Event "*** Titled Tuesday Blitz"]
[Site "Chess.com"]
[Date "2018.11.06"]
[Round "6"]
[White "Supernotar"]
[Black "Zq1"]
[Result "0-1"]
[WhiteElo "2364"]
[BlackElo "2496"]
[TimeControl "180+2"]
[EndTime "14:23:57 PST"]
[Termination "Zq1 won by checkmate"]

1. d4 {[%clk 0:03:00.9]} 1... Nf6 {[%clk 0:02:58.2]} 2. c4 {[%clk 0:03:01.9]}
2... a6 {[%clk 0:02:59]} 3. Nc3 {[%clk 0:03:02.2]} 3... c5 {[%clk 0:02:59.7]} 4.
e3 {[%clk 0:03:01.8]} 4... g6 {[%clk 0:02:57.9]} 5. Nf3 {[%clk 0:03:01.6]} 5...
cxd4 {[%clk 0:02:58.1]} 6. Nxd4 {[%clk 0:03:01.3]} 6... Bg7 {[%clk 0:02:58.5]}
7. Be2 {[%clk 0:03:02.6]} 7... O-O {[%clk 0:02:59.1]} 8. O-O {[%clk 0:03:03.6]}
8... d5 {[%clk 0:03:00.2]} 9. b3 {[%clk 0:02:59.3]} 9... dxc4 {[%clk 0:02:59.1]}
10. Bxc4 {[%clk 0:03:00.6]} 10... b5 {[%clk 0:02:59.7]} 11. Be2 {[%clk
0:02:56.3]} 11... Bb7 {[%clk 0:02:58.8]} 12. Bb2 {[%clk 0:02:57.1]} 12... Nc6
{[%clk 0:02:54.7]} 13. Bf3 {[%clk 0:02:57.6]} 13... Rc8 {[%clk 0:02:54.2]} 14.
Nxc6 {[%clk 0:02:56.2]} 14... Bxc6 {[%clk 0:02:54.6]} 15. Bxc6 {[%clk
0:02:56.1]} 15... Rxc6 {[%clk 0:02:54.4]} 16. Qxd8 {[%clk 0:02:57.1]} 16... Rxd8
{[%clk 0:02:54.5]} 17. Rfd1 {[%clk 0:02:58.3]} 17... Rdc8 {[%clk 0:02:50.7]} 18.
Rac1 {[%clk 0:02:55.7]} 18... Ne4 {[%clk 0:02:42.4]} 19. Nxe4 {[%clk 0:02:55.9]}
19... Bxb2 {[%clk 0:02:42.1]} 20. Rxc6 {[%clk 0:02:56.7]} 20... Rxc6 {[%clk
0:02:43.2]} 21. g4 {[%clk 0:02:52.6]} 21... Kg7 {[%clk 0:02:35.4]} 22. Kg2
{[%clk 0:02:53.3]} 22... Ba3 {[%clk 0:02:32.6]} 23. Rd2 {[%clk 0:02:50]} 23...
Bb4 {[%clk 0:02:28.5]} 24. Rd4 {[%clk 0:02:51]} 24... Ba3 {[%clk 0:02:27.6]} 25.
Rd2 {[%clk 0:02:52]} 25... h6 {[%clk 0:02:24.9]} 26. Kf3 {[%clk 0:02:51]} 26...
f5 {[%clk 0:02:13.9]} 27. gxf5 {[%clk 0:02:47.7]} 27... gxf5 {[%clk 0:02:14.4]}
28. Ng3 {[%clk 0:02:49]} 28... Kf6 {[%clk 0:02:14.1]} 29. Ne2 {[%clk 0:02:50.1]}
29... e5 {[%clk 0:02:02.3]} 30. e4 {[%clk 0:02:40.5]} 30... Bb4 {[%clk
0:02:01.7]} 31. Rd8 {[%clk 0:02:38.2]} 31... fxe4+ {[%clk 0:01:44.3]} 32. Ke3
{[%clk 0:02:38.9]} 32... Rc2 {[%clk 0:01:42.3]} 33. Ng3 {[%clk 0:02:31.7]} 33...
Bc5+ {[%clk 0:01:39.8]} 34. Kxe4 {[%clk 0:02:32.5]} 34... Rxf2 {[%clk
0:01:39.4]} 35. Rc8 {[%clk 0:02:23.9]} 35... Bd4 {[%clk 0:01:34.2]} 36. Kd5
{[%clk 0:02:15.6]} 36... Rxh2 {[%clk 0:01:21.8]} 37. Rc6+ {[%clk 0:02:16.4]}
37... Kg5 {[%clk 0:01:22.4]} 38. Rxa6 {[%clk 0:02:15.1]} 38... h5 {[%clk
0:01:23.1]} 39. Ne4+ {[%clk 0:02:14.8]} 39... Kf4 {[%clk 0:01:24.3]} 40. a4
{[%clk 0:02:13.2]} 40... bxa4 {[%clk 0:01:24.4]} 41. bxa4 {[%clk 0:02:14.6]}
41... h4 {[%clk 0:01:25]} 42. Rf6+ {[%clk 0:02:12.9]} 42... Ke3 {[%clk
0:01:25.1]} 43. a5 {[%clk 0:02:14.3]} 43... Ra2 {[%clk 0:01:22.5]} 44. Ng5
{[%clk 0:02:07.1]} 44... Rxa5+ {[%clk 0:01:21.4]} 45. Kc4 {[%clk 0:02:08.6]}
45... e4 {[%clk 0:01:16.2]} 46. Rg6 {[%clk 0:01:53.2]} 46... Rc5+ {[%clk
0:01:16.3]} 47. Kb4 {[%clk 0:01:53.3]} 47... Rf5 {[%clk 0:01:16.5]} 48. Kc4
{[%clk 0:01:47.8]} 48... Rf6 {[%clk 0:01:16.4]} 49. Rg8 {[%clk 0:01:45.2]} 49...
Rc6+ {[%clk 0:01:07.6]} 50. Kb3 {[%clk 0:01:43.8]} 50... Kd3 {[%clk 0:01:05.3]}
51. Nxe4 {[%clk 0:01:38.4]} 51... Rb6+ {[%clk 0:00:58.2]} 52. Ka4 {[%clk
0:01:37.7]} 52... Kxe4 {[%clk 0:00:58.7]} 53. Rg4+ {[%clk 0:01:38.4]} 53... Kd3
{[%clk 0:01:00.1]} 54. Rxh4 {[%clk 0:01:39.6]} 54... Kc4 {[%clk 0:01:01.2]} 55.
Ka5 {[%clk 0:01:36.6]} 55... Rb5+ {[%clk 0:00:58.7]} 56. Ka6 {[%clk 0:01:32.8]}
56... Rb6+ {[%clk 0:00:59.5]} 57. Ka5 {[%clk 0:01:33.8]} 57... Rb7 {[%clk
0:01:00.5]} 58. Rh6 {[%clk 0:01:32.7]} 58... Ra7+ {[%clk 0:00:58.3]} 59. Ra6
{[%clk 0:01:33.2]} 59... Rg7 {[%clk 0:00:56.1]} 60. Re6 {[%clk 0:01:24.6]} 60...
Bc5 {[%clk 0:00:47.2]} 61. Re4+ {[%clk 0:01:23.3]} 61... Bd4 {[%clk 0:00:47.8]}
62. Re6 {[%clk 0:01:24.5]} 62... Rb7 {[%clk 0:00:48.4]} 63. Rg6 {[%clk
0:01:13.8]} 63... Rb5+ {[%clk 0:00:43.4]} 64. Ka6 {[%clk 0:01:09.9]} 64... Rd5
{[%clk 0:00:44]} 65. Kb7 {[%clk 0:01:06.7]} 65... Kb5 {[%clk 0:00:44.6]} 66. Rg2
{[%clk 0:01:03.1]} 66... Bc5 {[%clk 0:00:42.6]} 67. Rb2+ {[%clk 0:01:00.5]}
67... Bb4 {[%clk 0:00:43.4]} 68. Kc7 {[%clk 0:00:59.9]} 68... Re5 {[%clk
0:00:44.3]} 69. Rg2 {[%clk 0:00:55.4]} 69... Re7+ {[%clk 0:00:44.9]} 70. Kd8
{[%clk 0:00:54.5]} 70... Rh7 {[%clk 0:00:45.2]} 71. Rg6 {[%clk 0:00:51.6]} 71...
Bc5 {[%clk 0:00:45.8]} 72. Ke8 {[%clk 0:00:51.5]} 72... Kc4 {[%clk 0:00:44.3]}
73. Rg5 {[%clk 0:00:52.2]} 73... Bd6 {[%clk 0:00:43]} 74. Rf5 {[%clk 0:00:50.6]}
74... Re7+ {[%clk 0:00:39.9]} 75. Kd8 {[%clk 0:00:51.3]} 75... Kd4 {[%clk
0:00:39.4]} 76. Rh5 {[%clk 0:00:50.3]} 76... Rg7 {[%clk 0:00:37.3]} 77. Ke8
{[%clk 0:00:48.8]} 77... Re7+ {[%clk 0:00:36.5]} 78. Kd8 {[%clk 0:00:49.8]}
78... Rb7 {[%clk 0:00:36.9]} 79. Kc8 {[%clk 0:00:47.3]} 79... Ra7 {[%clk
0:00:33.2]} 80. Kd8 {[%clk 0:00:48]} 80... Be5 {[%clk 0:00:33.3]} 81. Ke8 {[%clk
0:00:42.8]} 81... Kd5 {[%clk 0:00:34.3]} 82. Rh6 {[%clk 0:00:41.8]} 82... Ke4
{[%clk 0:00:34.5]} 83. Rh5 {[%clk 0:00:41.8]} 83... Rg7 {[%clk 0:00:30.9]} 84.
Kf8 {[%clk 0:00:41.5]} 84... Rd7 {[%clk 0:00:31.2]} 85. Ke8 {[%clk 0:00:42.2]}
85... Rb7 {[%clk 0:00:31.1]} 86. Kf8 {[%clk 0:00:42.4]} 86... Kd5 {[%clk
0:00:27.6]} 87. Rh6 {[%clk 0:00:43.5]} 87... Bg7+ {[%clk 0:00:28.1]} 88. Kg8
{[%clk 0:00:43.8]} 88... Bxh6 {[%clk 0:00:28.9]} 89. Kh8 {[%clk 0:00:43.7]}
89... Ke6 {[%clk 0:00:29.5]} 90. Kg8 {[%clk 0:00:44.7]} 90... Kf6 {[%clk
0:00:30]} 91. Kh8 {[%clk 0:00:46.1]} 91... Kg6 {[%clk 0:00:31.2]} 92. Kg8 {[%clk
0:00:47.4]} 92... Rb8# {[%clk 0:00:32.4]} 0-1

[Event "*** Titled Tuesday Blitz"]
[Site "Chess.com"]
[Date "2018.11.06"]
[Round "6"]
[White "wadsy27"]
[Black "wonderfultime"]
[Result "1/2-1/2"]
[WhiteElo "2360"]
[BlackElo "2790"]
[TimeControl "180+2"]
[EndTime "14:24:07 PST"]
[Termination "Game drawn by stalemate"]

1. c4 {[%clk 0:03:01.9]} 1... c6 {[%clk 0:03:00.9]} 2. Nf3 {[%clk 0:03:02.4]}
2... Nf6 {[%clk 0:03:02.4]} 3. g3 {[%clk 0:03:04]} 3... d5 {[%clk 0:03:03.9]} 4.
Bg2 {[%clk 0:03:05.3]} 4... Bg4 {[%clk 0:03:05.5]} 5. Ne5 {[%clk 0:03:05.3]}
5... Be6 {[%clk 0:03:05.5]} 6. cxd5 {[%clk 0:03:06.3]} 6... Bxd5 {[%clk
0:03:07.4]} 7. Nf3 {[%clk 0:03:07.3]} 7... c5 {[%clk 0:03:09]} 8. O-O {[%clk
0:03:07.6]} 8... e6 {[%clk 0:03:09.8]} 9. Nc3 {[%clk 0:03:09]} 9... Bc6 {[%clk
0:03:11.2]} 10. Re1 {[%clk 0:03:06.7]} 10... Be7 {[%clk 0:03:12.2]} 11. e4
{[%clk 0:03:07.4]} 11... O-O {[%clk 0:03:08.4]} 12. d4 {[%clk 0:03:04]} 12...
cxd4 {[%clk 0:02:47.7]} 13. Nxd4 {[%clk 0:03:04.6]} 13... Nfd7 {[%clk
0:02:24.3]} 14. Nxc6 {[%clk 0:02:22.9]} 14... Nxc6 {[%clk 0:02:26.2]} 15. Be3
{[%clk 0:02:16.4]} 15... Nde5 {[%clk 0:02:26.7]} 16. Qe2 {[%clk 0:02:16.3]}
16... Qd3 {[%clk 0:02:15.2]} 17. Red1 {[%clk 0:02:06.8]} 17... Qxe2 {[%clk
0:02:16.3]} 18. Nxe2 {[%clk 0:02:07.4]} 18... Nc4 {[%clk 0:02:12.7]} 19. Bd4
{[%clk 0:01:39.1]} 19... Rfd8 {[%clk 0:01:19.5]} 20. Bc3 {[%clk 0:01:36.6]}
20... Bc5 {[%clk 0:01:11.3]} 21. Nf4 {[%clk 0:01:17.4]} 21... N4e5 {[%clk
0:01:10.2]} 22. h3 {[%clk 0:01:08.6]} 22... Kf8 {[%clk 0:00:55.2]} 23. Bf1
{[%clk 0:01:02.4]} 23... a6 {[%clk 0:00:54.3]} 24. Rac1 {[%clk 0:00:55.8]} 24...
Bb6 {[%clk 0:00:52.8]} 25. Kg2 {[%clk 0:00:51.2]} 25... Ke7 {[%clk 0:00:42.1]}
26. a3 {[%clk 0:00:43.2]} 26... f6 {[%clk 0:00:36.8]} 27. Nd3 {[%clk 0:00:37.6]}
27... Nxd3 {[%clk 0:00:36.3]} 28. Bxd3 {[%clk 0:00:38.4]} 28... Rd7 {[%clk
0:00:32.8]} 29. Be2 {[%clk 0:00:35.3]} 29... Rad8 {[%clk 0:00:33.9]} 30. Rxd7+
{[%clk 0:00:36.2]} 30... Rxd7 {[%clk 0:00:35.8]} 31. Rd1 {[%clk 0:00:34]} 31...
Bd4 {[%clk 0:00:37.2]} 32. Bxd4 {[%clk 0:00:24.7]} 32... Nxd4 {[%clk 0:00:39.1]}
33. Bc4 {[%clk 0:00:20.4]} 33... b5 {[%clk 0:00:40]} 34. Ba2 {[%clk 0:00:21]}
34... g5 {[%clk 0:00:41.3]} 35. f4 {[%clk 0:00:19.6]} 35... gxf4 {[%clk
0:00:38.3]} 36. gxf4 {[%clk 0:00:21.5]} 36... a5 {[%clk 0:00:28]} 37. e5 {[%clk
0:00:20.5]} 37... fxe5 {[%clk 0:00:27.5]} 38. fxe5 {[%clk 0:00:21.2]} 38... Nc6
{[%clk 0:00:27.8]} 39. Rxd7+ {[%clk 0:00:18.1]} 39... Kxd7 {[%clk 0:00:29.7]}
40. Bb1 {[%clk 0:00:17.7]} 40... h6 {[%clk 0:00:30.7]} 41. Bd3 {[%clk
0:00:18.5]} 41... b4 {[%clk 0:00:22.3]} 42. Bb5 {[%clk 0:00:18.6]} 42... Kc7
{[%clk 0:00:23.5]} 43. axb4 {[%clk 0:00:16.4]} 43... axb4 {[%clk 0:00:23.6]} 44.
Bc4 {[%clk 0:00:13.7]} 44... Nxe5 {[%clk 0:00:22.4]} 45. Bxe6 {[%clk 0:00:14.7]}
45... Nd3 {[%clk 0:00:24]} 46. Kg3 {[%clk 0:00:06.8]} 46... Nxb2 {[%clk
0:00:24.6]} 47. Kg4 {[%clk 0:00:08]} 47... Kd6 {[%clk 0:00:25.8]} 48. Bb3 {[%clk
0:00:08.2]} 48... Nd3 {[%clk 0:00:24.3]} 49. Kh5 {[%clk 0:00:07.6]} 49... Nf4+
{[%clk 0:00:25]} 50. Kxh6 {[%clk 0:00:08.8]} 50... Nxh3 {[%clk 0:00:26.2]} 51.
Kh5 {[%clk 0:00:10]} 51... Kc5 {[%clk 0:00:26.1]} 52. Kg4 {[%clk 0:00:11.2]}
52... Ng1 {[%clk 0:00:23.8]} 53. Kg3 {[%clk 0:00:11.3]} 53... Kd4 {[%clk
0:00:25.4]} 54. Kf2 {[%clk 0:00:12.4]} 54... Nh3+ {[%clk 0:00:26.6]} 55. Ke2
{[%clk 0:00:12.9]} 55... Kc3 {[%clk 0:00:28.1]} 56. Bg8 {[%clk 0:00:12.6]} 56...
Nf4+ {[%clk 0:00:25.5]} 57. Kd1 {[%clk 0:00:13.1]} 57... Nd3 {[%clk 0:00:23.3]}
58. Bf7 {[%clk 0:00:12.6]} 58... Kb2 {[%clk 0:00:15.9]} 59. Kd2 {[%clk
0:00:12.4]} 59... Ne5 {[%clk 0:00:16.7]} 60. Be6 {[%clk 0:00:12.1]} 60... Nf3+
{[%clk 0:00:17.7]} 61. Kd3 {[%clk 0:00:12.1]} 61... Ka3 {[%clk 0:00:17.6]} 62.
Bg8 {[%clk 0:00:10.1]} 62... Kb2 {[%clk 0:00:14.6]} 63. Kc4 {[%clk 0:00:08.4]}
63... Ka3 {[%clk 0:00:14.3]} 64. Kd3 {[%clk 0:00:09.4]} 64... Ne5+ {[%clk
0:00:11.2]} 65. Kc2 {[%clk 0:00:10.2]} 65... Nc6 {[%clk 0:00:12.7]} 66. Kb1
{[%clk 0:00:10.9]} 66... Ne7 {[%clk 0:00:12]} 67. Be6 {[%clk 0:00:11.1]} 67...
Ng6 {[%clk 0:00:13.1]} 68. Bf7 {[%clk 0:00:11.9]} 68... Nf4 {[%clk 0:00:15]} 69.
Bg8 {[%clk 0:00:12.6]} 69... Ka4 {[%clk 0:00:16.3]} 70. Bf7 {[%clk 0:00:13.5]}
70... Kb5 {[%clk 0:00:18.2]} 71. Bg8 {[%clk 0:00:14.6]} 71... Kc5 {[%clk
0:00:20.1]} 72. Bf7 {[%clk 0:00:15.6]} 72... Kd4 {[%clk 0:00:22]} 73. Kb2 {[%clk
0:00:14.9]} 73... Nd3+ {[%clk 0:00:23.4]} 74. Kb3 {[%clk 0:00:14.3]} 74... Kc5
{[%clk 0:00:25.3]} 75. Bg8 {[%clk 0:00:13.6]} 75... Ne5 {[%clk 0:00:26.4]} 76.
Be6 {[%clk 0:00:13.7]} 76... Nc6 {[%clk 0:00:27.8]} 77. Bg8 {[%clk 0:00:14.7]}
77... Nd4+ {[%clk 0:00:29.1]} 78. Kb2 {[%clk 0:00:16.2]} 78... Nb5 {[%clk
0:00:26.9]} 79. Bf7 {[%clk 0:00:16.9]} 79... Nd6 {[%clk 0:00:28.8]} 80. Bg8
{[%clk 0:00:17.9]} 80... Kb5 {[%clk 0:00:28.8]} 81. Be6 {[%clk 0:00:16.6]} 81...
Nc4+ {[%clk 0:00:30.7]} 82. Bxc4+ {[%clk 0:00:16.3]} 82... Kxc4 {[%clk
0:00:32.6]} 83. Kc2 {[%clk 0:00:17.3]} 83... b3+ {[%clk 0:00:34.5]} 84. Kb2
{[%clk 0:00:18.5]} 84... Kb4 {[%clk 0:00:36.4]} 85. Kb1 {[%clk 0:00:19.6]} 85...
Kc4 {[%clk 0:00:37.9]} 86. Kb2 {[%clk 0:00:19.2]} 86... Kb4 {[%clk 0:00:39.1]}
87. Kb1 {[%clk 0:00:20.3]} 87... Ka3 {[%clk 0:00:40.5]} 88. Ka1 {[%clk
0:00:21.2]} 88... b2+ {[%clk 0:00:42.4]} 89. Kb1 {[%clk 0:00:22.3]} 89... Kb3
{[%clk 0:00:44.3]} 1/2-1/2

[Event "*** Titled Tuesday Blitz"]
[Site "Chess.com"]
[Date "2018.11.06"]
[Round "7"]
[White "SimonKnightRivendell"]
[Black "Perecke"]
[Result "0-1"]
[WhiteElo "1960"]
[BlackElo "1988"]
[TimeControl "180+2"]
[EndTime "14:30:34 PST"]
[Termination "Perecke won by resignation"]

1. d4 {[%clk 0:03:01.9]} 1... d5 {[%clk 0:03:00.9]} 2. Nf3 {[%clk 0:02:58.3]}
2... Nf6 {[%clk 0:03:02.2]} 3. e3 {[%clk 0:02:59.2]} 3... Bg4 {[%clk 0:03:01.5]}
4. c4 {[%clk 0:02:59.4]} 4... c6 {[%clk 0:03:01.9]} 5. Nc3 {[%clk 0:02:58.9]}
5... e6 {[%clk 0:03:02.4]} 6. Be2 {[%clk 0:02:59.8]} 6... Bd6 {[%clk 0:03:03.5]}
7. O-O {[%clk 0:02:59.8]} 7... O-O {[%clk 0:03:04.4]} 8. b3 {[%clk 0:03:00.6]}
8... Nbd7 {[%clk 0:03:04.9]} 9. Bb2 {[%clk 0:03:01.4]} 9... Re8 {[%clk
0:03:06.4]} 10. Rc1 {[%clk 0:02:56.9]} 10... Rc8 {[%clk 0:03:06]} 11. cxd5
{[%clk 0:02:56]} 11... cxd5 {[%clk 0:03:06.7]} 12. Qd2 {[%clk 0:02:50.5]} 12...
Qe7 {[%clk 0:03:06]} 13. Nb5 {[%clk 0:02:42.5]} 13... Bb8 {[%clk 0:03:04.6]} 14.
Rxc8 {[%clk 0:02:39.7]} 14... Rxc8 {[%clk 0:03:04.6]} 15. Rc1 {[%clk 0:02:40.5]}
15... Qe8 {[%clk 0:03:03.3]} 16. Ba3 {[%clk 0:02:32.7]} 16... a6 {[%clk
0:03:03.2]} 17. Nd6 {[%clk 0:02:32.5]} 17... Bxd6 {[%clk 0:03:04.1]} 18. Bxd6
{[%clk 0:02:32.1]} 18... Ne4 {[%clk 0:03:05.2]} 19. Rxc8 {[%clk 0:02:28.5]}
19... Qxc8 {[%clk 0:03:07.1]} 20. Qb4 {[%clk 0:02:26.9]} 20... Qc1+ {[%clk
0:02:56.3]} 21. Bf1 {[%clk 0:02:27.2]} 21... Bxf3 {[%clk 0:02:54]} 22. gxf3
{[%clk 0:02:27.5]} 22... Nd2 {[%clk 0:02:55.1]} 0-1

[Event "*** Titled Tuesday Blitz"]
[Site "Chess.com"]
[Date "2018.11.06"]
[Round "7"]
[White "tactics321"]
[Black "hypert"]
[Result "0-1"]
[WhiteElo "2378"]
[BlackElo "2383"]
[TimeControl "180+2"]
[EndTime "14:30:51 PST"]
[Termination "hypert won by checkmate"]

1. e4 {[%clk 0:03:01.9]} 1... c5 {[%clk 0:03:00.2]} 2. Nf3 {[%clk 0:03:03.2]}
2... Nc6 {[%clk 0:02:58.3]} 3. d4 {[%clk 0:03:03.8]} 3... cxd4 {[%clk
0:02:59.3]} 4. Nxd4 {[%clk 0:03:05.7]} 4... Nf6 {[%clk 0:03:00.6]} 5. Nc3 {[%clk
0:03:07.3]} 5... d6 {[%clk 0:03:02.2]} 6. f3 {[%clk 0:03:06.2]} 6... e5 {[%clk
0:03:02.3]} 7. Nb3 {[%clk 0:03:07.7]} 7... Be6 {[%clk 0:03:03]} 8. Nd5 {[%clk
0:03:08.4]} 8... Bxd5 {[%clk 0:03:03]} 9. exd5 {[%clk 0:03:09.3]} 9... Nb4
{[%clk 0:02:58.8]} 10. Bb5+ {[%clk 0:03:10.1]} 10... Nd7 {[%clk 0:02:52.2]} 11.
O-O {[%clk 0:03:03.8]} 11... Qb6+ {[%clk 0:02:51.7]} 12. Kh1 {[%clk 0:02:35.9]}
12... Qxb5 {[%clk 0:02:52.2]} 13. f4 {[%clk 0:02:23.9]} 13... Qxd5 {[%clk
0:02:47.7]} 14. Qe2 {[%clk 0:02:25]} 14... Nc6 {[%clk 0:02:45.9]} 15. f5 {[%clk
0:02:04.6]} 15... Nc5 {[%clk 0:02:38.4]} 16. c4 {[%clk 0:01:56.2]} 16... Qd3
{[%clk 0:02:34.1]} 17. Qg4 {[%clk 0:01:54.5]} 17... Qxf1# {[%clk 0:02:32.5]} 0-1

[Event "*** Titled Tuesday Blitz"]
[Site "Chess.com"]
[Date "2018.11.06"]
[Round "7"]
[White "GukeshDommaraju"]
[Black "olksuna"]
[Result "1-0"]
[WhiteElo "2674"]
[BlackElo "2548"]
[TimeControl "180+2"]
[EndTime "14:31:07 PST"]
[Termination "GukeshDommaraju won by checkmate"]

1. Nf3 {[%clk 0:03:01.9]} 1... c5 {[%clk 0:03:00.5]} 2. c4 {[%clk 0:03:00.7]}
2... Nc6 {[%clk 0:03:01.5]} 3. Nc3 {[%clk 0:03:01.3]} 3... g6 {[%clk 0:03:02.2]}
4. e3 {[%clk 0:03:02]} 4... Nf6 {[%clk 0:03:00.4]} 5. d4 {[%clk 0:03:02.6]} 5...
cxd4 {[%clk 0:03:01.5]} 6. exd4 {[%clk 0:03:03.5]} 6... d5 {[%clk 0:03:03]} 7.
cxd5 {[%clk 0:03:04.5]} 7... Nxd5 {[%clk 0:03:03.4]} 8. Qb3 {[%clk 0:03:05.4]}
8... Nxc3 {[%clk 0:02:59.7]} 9. Bc4 {[%clk 0:03:05.6]} 9... e6 {[%clk 0:02:55]}
10. bxc3 {[%clk 0:03:05.5]} 10... Na5 {[%clk 0:02:51]} 11. Bb5+ {[%clk
0:03:05.5]} 11... Bd7 {[%clk 0:02:47.2]} 12. Qa4 {[%clk 0:03:02.2]} 12... b6
{[%clk 0:02:45.5]} 13. Ne5 {[%clk 0:02:59.5]} 13... Bxb5 {[%clk 0:02:15.5]} 14.
Qxb5+ {[%clk 0:02:58.5]} 14... Ke7 {[%clk 0:02:17.1]} 15. Ba3+ {[%clk
0:02:24.2]} 15... Kf6 {[%clk 0:02:15.3]} 16. Nd7+ {[%clk 0:02:22.4]} 16... Qxd7
{[%clk 0:01:56]} 17. Qe5# {[%clk 0:02:19]} 1-0